[Event "WSTCC-50 2024"]
[Site "Krakow"]
[Date "2024.07.04"]
[Round "3.1"]
[White "Ehlvest, Jaan"]
[Black "Sokolin, Leonid"]
[Result "1/2-1/2"]
[ECO "C77"]
[WhiteElo "2528"]
[BlackElo "2454"]
[Annotator "TA"]
[PlyCount "39"]
[EventDate "2024.07.01"]
[EventType "team-tourn"]
[EventCountry "POL"]
[SourceTitle "playchess.com"]
[Source "ChessBase"]
[SourceQuality "1"]
[TimeControl "40/5400+30:1800+30"]

{[%evp 14,39,34,31,33,39,58,52,62,49,27,41,44,57,52,71,67,57,54,59,64,30,41,37,66,32,38,20]} 1. e4 {[%emt 0:00:13]} e5 {[%emt 0:00:03]} 2. Nf3 {[%emt 0:01:17]} Nc6 {[%emt 0:00:03]} 3. Bb5 {[%emt 0:00:51]} a6 {[%emt 0:00:04]} 4. Ba4 {[%emt 0:00:08]} Nf6 {[%emt 0:00:03]} 5. Nc3 {[%emt 0:00:10]} d6 {[%emt 0:02:55]} 6. Bxc6+ {[%emt 0:01:24]} bxc6 {[%emt 0:00:10]} 7. d4 {[%emt 0:00:05]} exd4 {[%emt 0:01:24]} 8. Nxd4 {[%emt 0:06:15]} Bd7 {[%emt 0:01:24]} 9. Qf3 {[%emt 0:01:44]} c5 {[%emt 0:12:00]} 10. Nf5 {[%emt 0:01:27]} Bxf5 {[%emt 0:21:47]} 11. Qxf5 {[%emt 0:30:14]} g6 {[%emt 0:05:48]} 12. Qh3 {[%emt 0:03:14]} Bg7 {[%emt 0:01:47]} 13. Bh6 {[%emt 0:01:24]} O-O {[%emt 0:00:29][%cal Of6e4]} 14. Bxg7 {[%emt 0:00:14]} Kxg7 {[%emt 0:00:01]} 15. O-O-O {[%emt 0:00:18]} Re8 {[%emt 0:00:37]} 16. Rhe1 {[%emt 0:00:17]} Qc8 {[%emt 0:00:40]} 17. Qg3 {[%emt 0:09:10] White is more active.} Rb8 {[%emt 0:04:34]} 18. b3 {[%emt 0:12:15] White is slightly better.} Rb4 {[%emt 0:02:39]} 19. f3 {[%emt 0:01:58]} Qe6 {[%emt 0:01:52]} 20. Kb1 {Weighted Error Value: White=0.07 (flawless) /Black=0.05 (flawless) .  Inaccurate:     	White=2     	Black=1      OK:         	White=7     	Black=6} 1/2-1/2

[Event "WSTCC-50 2024"]
[Site "Krakow"]
[Date "2024.07.04"]
[Round "3.1"]
[White "Jhunjhnuwala, Krishan"]
[Black "Mrva, Martin"]
[Result "0-1"]
[ECO "B23"]
[WhiteElo "2227"]
[BlackElo "2361"]
[Annotator "TA"]
[PlyCount "96"]
[EventDate "2024.07.01"]
[EventType "team-tourn"]
[EventCountry "POL"]
[SourceTitle "playchess.com"]
[Source "ChessBase"]
[SourceQuality "1"]
[TimeControl "40/5400+30:1800+30"]

{[%evp 11,96,-6,-7,-15,-14,-15,0,-33,0,0,5,0,10,0,0,0,0,-9,0,0,0,0,0,0,8,0,-8,-25,-20,-13,-18,-27,0,0,0,0,21,0,17,38,28,25,20,19,30,0,0,0,0,0,0,0,30,25,24,20,85,0,43,48,106,-329,-322,-313,-320,-346,-336,-324,-311,-308,-300,-379,-378,-388,-380,-431,-427,-416,-418,-29976,-29977,-29978,-29979,-29979,-29978,-29991,-29980]} 1. e4 {[%emt 0:00:03]} c5 {[%emt 0:00:06]} 2. Nc3 {[%emt 0:00:13]} e6 {[%emt 0:00:27]} 3. f4 {[%emt 0:01:48]} d5 {[%emt 0:01:21]} 4. Nf3 {[%emt 0:00:23]} dxe4 {[%emt 0:01:22]} 5. Nxe4 {[%emt 0:00:46]} Nc6 {[%emt 0:00:06]} 6. Bb5 {[%emt 0:03:52]} Bd7 {[%emt 0:01:02]} 7. Qe2 {[%emt 0:02:02][%cal Of4f5]} Nf6 {[%emt 0:11:40]} 8. f5 {[%emt 0:07:56]} Nxe4 {[%emt 0:12:09]} (8... Be7 {keeps more tension.} 9. fxe6 Bxe6 10. Nfg5 Nxe4 11. Nxe6 fxe6 12. Qxe4 O-O) 9. Qxe4 {[%emt 0:04:21] The position is equal.} Qe7 {[%emt 0:04:29]} 10. fxe6 {[%emt 0:02:23]} Qxe6 {[%emt 0:00:43]} 11. Qxe6+ {[%emt 0:00:48]} Bxe6 {[%emt 0:06:48]} 12. Bxc6+ {[%emt 0:02:55]} bxc6 {[%emt 0:00:08]} 13. d3 {[%emt 0:06:30]} c4 {[%emt 0:00:55]} 14. dxc4 {[%emt 0:05:29]} Bxc4 {[%emt 0:00:38]} 15. Be3 {[%emt 0:03:24] Dodges Bc5} Bb4+ {[%emt 0:03:00]} 16. Kf2 {[%emt 0:05:39]} a5 {[%emt 0:06:36]} 17. c3 {[%emt 0:11:55]} Be7 {[%emt 0:01:06]} 18. b3 {[%emt 0:02:32]} Bd5 {[%emt 0:02:47]} 19. c4 {[%emt 0:00:52]} Be4 {[%emt 0:01:21]} 20. Rhe1 {[%emt 0:02:39]} O-O {[%emt 0:00:42]} 21. Rad1 {[%emt 0:02:02]} f5 {[%emt 0:19:17]} 22. Rd7 {[%emt 0:01:48]} Bb4 {[%emt 0:03:41][%cal Oe4f3] Threatens to win with ...Bxf3!} 23. Red1 {[%emt 0:01:49]} (23. Bd2 {simplifies} Rfd8 24. Rxd8+ Rxd8 25. Bxb4 axb4 26. Re2) 23... Rfe8 {[%emt 0:05:01]} (23... h6 {simplifies} 24. Nd2 Rae8 25. Nxe4 Rxe4 26. R7d4 a4) 24. Ng5 {[%emt 0:07:39]} Bxg2 {[%emt 0:05:25][%cal Oh7h6]} 25. Bd4 {[%emt 0:08:57]} Re7 {[%emt 0:00:40]} 26. Ba1 {[%emt 0:01:01][%mdl 1024] White has compensation.} Be4 {[%emt 0:03:12]} 27. Rd8+ {[%emt 0:03:54]} Re8 {[%emt 0:00:55] [#]} 28. R1d7 $40 {[%emt 0:00:42][%mdl 128] White mounts an attack.} Bc5+ {[%emt 0:02:49]} (28... Raxd8 29. Rxg7+ Kh8 30. Nf7#) 29. Kg3 {[%emt 0:00:42]} Bd6+ {[%emt 0:00:36]} (29... Raxd8 30. Rxg7+ Kh8 31. Nf7#) 30. Kf2 {[%emt 0:01:13]} Bc5+ {[%emt 0:00:06] A strong pair of Bishops.} (30... Raxd8 31. Rxg7+ Kh8 32. Nf7#) 31. Kg3 {[%emt 0:00:22]} Bf8 {[%emt 0:00:18]} (31... Raxd8 32. Rxg7+ Kh8 33. Nf7#) 32. Rxa8 {[%emt 0:00:41]} Rxa8 {[%emt 0:00:06]} 33. Ne6 {[%emt 0:00:19]} a4 {[%emt 0:01:54]} (33... c5 $11 {keeps the balance.}) 34. bxa4 {[%emt 0:01:35]} (34. Bxg7 $16 Bxg7 35. Rxg7+ Kh8 36. Kf4) 34... g5 {[%emt 0:01:34]} (34... Rxa4 35. Bxg7 Bxg7 36. Rxg7+ Kh8 37. Rb7) 35. Nxg5 {[%emt 0:01:16]} Rxa4 {[%emt 0:00:20]} (35... Bb1 $14) 36. Nxh7 $2 {[%emt 0:00:59][%mdl 8192] This costs White the game.} (36. Kh4 $16 {and life is bright.} Rxa2 (36... Rxc4 $2 {perishes.} 37. Nxh7 Bd5+ 38. Kg5 $18) 37. Be5) 36... f4+ $1 $19 {[%emt 0:00:08]} ({And not} 36... Rxc4 37. Nf6+ Kh8 38. Rh7#) 37. Kxf4 {[%emt 0:00:48]} Bxh7 {[%emt 0:00:02]} 38. Kg5 {[%emt 0:02:28]} Rxc4 {[%emt 0:00:40]} 39. Be5 {[%emt 0:00:11]} Rc2 {[%emt 0:02:41]} 40. a4 {[%emt 0:00:20]} Rf2 {[%emt 0:00:50]} 41. Bg3 {[%emt 0:30:20]} Rf5+ {[%emt 0:30:20]} 42. Kg4 {[%emt 0:00:12][%cal Od7h7]} Ra5 {[%emt 0:00:17] White must now prevent ...Bf5+.} 43. Rd8 {[%emt 0:01:13]} Rxa4+ {[%emt 0:00:52]} 44. Kg5 {[%emt 0:00:20]} Kf7 {[%emt 0:00:15] ( -> ...Be7+)} 45. Rd7+ {[%emt 0:00:34] [#]} (45. Bd6 $19 Ra5+ 46. Kf4 Bh6+ 47. Kf3) 45... Be7+ {[%emt 0:00:09] Black mates.} 46. Kh6 {[%emt 0:00:07]} Bf5 {[%emt 0:00:17]} 47. Rc7 {[%emt 0:00:22]} c5 {[%emt 0:02:00]} 48. h4 {[%emt 0:01:17]} Rg4 {[%emt 0:00:41] Weighted Error Value: White=0.39/Black=0.11 (very precise) .  Loses game:     	White=1     	---        Mistake:       	White=2     	Black=2      Inaccurate:     	White=2     	Black=4      OK:         	White=17    	Black=14     Best:        	White=1     	Black=2      Strong:       	---       	Black=1} 0-1

[Event "WSTCC-50 2024"]
[Site "Krakow"]
[Date "2024.07.04"]
[Round "3.1"]
[White "Baginskaite, Kamile"]
[Black "Crocker, Philip J"]
[Result "1/2-1/2"]
[ECO "D10"]
[WhiteElo "2057"]
[BlackElo "2122"]
[Annotator "NA RC"]
[PlyCount "43"]
[EventDate "2024.07.01"]
[EventType "team-tourn"]
[EventCountry "POL"]
[SourceTitle "playchess.com"]
[Source "ChessBase"]
[SourceQuality "1"]
[TimeControl "40/5400+30:1800+30"]

1. d4 {[%emt 0:00:01]} d5 {[%emt 0:00:11]} 2. c4 {[%emt 0:00:18]} c6 {[%emt 0:00:09]} 3. cxd5 {[%emt 0:00:18]} cxd5 {[%emt 0:00:05]} 4. Nc3 {[%emt 0:00:05]} Nf6 {[%emt 0:00:07]} 5. Bf4 {[%emt 0:00:04]} Nc6 {[%emt 0:00:25]} 6. e3 {[%emt 0:01:42]} a6 {[%emt 0:00:25]} 7. Bd3 {[%emt 0:00:25]} Bg4 {[%emt 0:01:10]} 8. Nge2 {[%emt 0:00:32]} e6 {[%emt 0:00:37]} 9. O-O {[%emt 0:00:08]} Bd6 {[%emt 0:00:52]} 10. Bg5 {[%emt 0:04:25]} O-O {[%emt 0:03:55]} 11. Rc1 {[%emt 0:03:08]} Rc8 {[%emt 0:01:22]} 12. Na4 {[%emt 0:08:01]} Qc7 {[%emt 0:15:19]} 13. Bxf6 {[%emt 0:08:11]} gxf6 {[%emt 0:04:23]} 14. h3 {[%emt 0:01:28]} Bh5 {[%emt 0:01:47]} 15. f4 {[%emt 0:05:07]} f5 {[%emt 0:03:50]} 16. a3 {[%emt 0:08:30]} Kh8 {[%emt 0:01:54]} 17. Qe1 {[%emt 0:02:46]} Bxe2 {[%emt 0:03:02]} 18. Qxe2 {[%emt 0:10:29]} Rg8 {[%emt 0:01:50]} 19. Nc3 {[%emt 0:02:47]} Qe7 {[%emt 0:03:34]} 20. Qh5 {[%emt 0:14:53]} Qf6 {[%emt 0:11:08]} 21. Ne2 {[%emt 0:00:10]} Qg6 {[%emt 0:03:57]} 22. Qxg6 {[%emt 0:01:54]} 1/2-1/2

[Event "WSTCC-50 2024"]
[Site "Krakow"]
[Date "2024.07.04"]
[Round "3.2"]
[White "Paschall, William"]
[Black "Shabalov, Alexander"]
[Result "1/2-1/2"]
[ECO "A06"]
[WhiteElo "2312"]
[BlackElo "2467"]
[Annotator "TA"]
[PlyCount "47"]
[EventDate "2024.07.01"]
[EventType "team-tourn"]
[EventCountry "POL"]
[SourceTitle "playchess.com"]
[Source "ChessBase"]
[SourceQuality "1"]
[TimeControl "40/5400+30:1800+30"]

{[%evp 11,47,27,31,43,32,10,32,18,27,14,4,12,16,0,0,0,0,-12,16,-15,5,-14,-7,-7,-8,-29,8,11,20,12,35,0,30,35,27,16,15,11]} 1. Nf3 {[%emt 0:00:22]} d5 {[%emt 0:00:12]} 2. g3 {[%emt 0:01:05]} Nf6 {[%emt 0:01:33]} 3. Bg2 {[%emt 0:01:39]} e6 {[%emt 0:00:37]} 4. O-O {[%emt 0:01:03]} Be7 {[%emt 0:01:35]} 5. d4 {[%emt 0:02:44]} O-O {[%emt 0:07:13]} 6. c4 {[%emt 0:05:49]} a5 {[%emt 0:00:15]} 7. Nc3 {[%emt 0:05:48]} c6 {[%emt 0:04:51]} 8. Ne5 {[%emt 0:04:13]} Nbd7 {[%emt 0:01:00]} 9. Nxd7 {[%emt 0:09:17] White is slightly better.} Bxd7 {[%emt 0:00:18]} 10. Qd3 {[%emt 0:02:00]} a4 {[%emt 0:05:16]} 11. Bd2 {[%emt 0:08:31]} Qb8 {[%emt 0:13:43]} 12. Bf4 {[%emt 0:16:14]} Qa7 {[%emt 0:01:14]} 13. Rfd1 {[%emt 0:02:24]} Nh5 {[%emt 0:05:21]} 14. Bd2 {[%emt 0:02:31][%cal Bf4d2,Bd2e1,Be1b4,Bb4c5][%mdl 32]} f5 {[%emt 0:16:25]} 15. Be1 {[%emt 0:02:01]} Nf6 {[%emt 0:01:19]} 16. Rac1 {[%emt 0:02:36] [#]} b5 $1 {[%emt 0:07:27]} 17. cxb5 {[%emt 0:03:25]} (17. c5 b4) 17... cxb5 {[%emt 0:01:06]} 18. a3 {[%emt 0:01:16][%cal Oc3a2]} Rfc8 {[%emt 0:10:19]} 19. Na2 {[%emt 0:01:42]} Ne4 {[%emt 0:03:38]} 20. Bb4 {[%emt 0:03:17]} Bf6 {[%emt 0:01:12]} 21. f3 {[%emt 0:01:09]} Rxc1 {[%emt 0:03:26]} (21... e5 $5) 22. Nxc1 {[%emt 0:00:11]} Ng5 {[%emt 0:00:18]} 23. Bc5 {[%emt 0:02:38]} Qc7 {[%emt 0:00:16]} 24. Qe3 {[%emt 0:01:05] Weighted Error Value: White=0.13 (very precise) /Black=0.12 (very precise) .  Inaccurate:     	White=2     	Black=3      OK:         	White=2     	Black=7} 1/2-1/2

[Event "WSTCC-50 2024"]
[Site "Krakow"]
[Date "2024.07.04"]
[Round "3.2"]
[White "Motuz, Karol"]
[Black "Jhunjhnuwala, Naresh"]
[Result "1-0"]
[ECO "A56"]
[WhiteElo "2293"]
[BlackElo "2009"]
[Annotator "TA"]
[PlyCount "77"]
[EventDate "2024.07.01"]
[EventType "team-tourn"]
[EventCountry "POL"]
[SourceTitle "playchess.com"]
[Source "ChessBase"]
[SourceQuality "1"]
[TimeControl "40/5400+30:1800+30"]

{[%evp 19,77,-7,25,0,23,31,35,14,12,17,48,35,64,49,54,45,70,59,72,72,71,68,89,62,113,76,172,166,178,183,206,183,202,203,208,202,195,201,213,194,286,270,281,270,285,275,1881,1796,820,535,487,434,1060,457,29996,29997,29997,29998,29998,29999]} 1. d4 {[%emt 0:00:02]} Nf6 {[%emt 0:00:06]} 2. c4 {[%emt 0:00:06]} c5 {[%emt 0:00:03]} 3. Nf3 {[%emt 0:00:08]} g6 {[%emt 0:01:01]} 4. Nc3 {[%emt 0:00:33]} cxd4 {[%emt 0:01:37]} 5. Nxd4 {[%emt 0:00:16]} Nc6 {[%emt 0:01:12]} 6. g3 {[%emt 0:00:25]} Nxd4 {[%emt 0:06:02]} 7. Qxd4 {[%emt 0:00:06]} Bg7 {[%emt 0:00:06]} 8. Bg2 {[%emt 0:00:59]} O-O {[%emt 0:00:15]} 9. O-O {[%emt 0:00:43]} d6 {[%emt 0:00:57]} 10. Qh4 {[%emt 0:06:42]} Rb8 {[%emt 0:09:40]} 11. Rd1 {[%emt 0:05:45]} Qa5 {[%emt 0:06:22]} 12. Bd2 {[%emt 0:03:07]} Qb6 {[%emt 0:08:39]} 13. Rab1 {[%emt 0:19:42] White is slightly better.} (13. b3 $5) 13... Ng4 {[%emt 0:22:16]} 14. Rf1 {[%emt 0:07:35] Black must now prevent Nd5.} Qd8 {[%emt 0:11:40]} 15. Nd5 {[%emt 0:03:53]} f6 {[%emt 0:04:27]} 16. h3 {[%emt 0:04:28] White is much more active.} Ne5 {[%emt 0:00:27]} 17. b3 {[%emt 0:02:16]} g5 {[%emt 0:03:27]} 18. Qh5 {[%emt 0:07:32]} Bf5 {[%emt 0:00:33][%cal Of5g6] Threatens to win with ...Bg6!} 19. e4 $1 {[%emt 0:00:27]} Bg6 {[%emt 0:00:21]} 20. Qe2 {[%emt 0:00:08]} e6 {[%emt 0:02:14] White stays focused until the end.} 21. Nc3 {[%emt 0:01:18]} a6 {[%emt 0:02:21]} (21... f5 $14) 22. Rbd1 {[%emt 0:01:52]} f5 {[%emt 0:05:09]} (22... Re8 $16) 23. exf5 $18 {[%emt 0:02:27]} Bxf5 {[%emt 0:01:14] [#]} 24. Ne4 $1 {[%emt 0:01:25] Strongly threatening Bb4.} Bxe4 {[%emt 0:01:26]} 25. Qxe4 {[%emt 0:00:46]} Qf6 {[%emt 0:01:15]} 26. Bb4 {[%emt 0:02:23] This pair of bishops is nice.} Nf7 {[%emt 0:02:28]} 27. Bxd6 {[%emt 0:05:18]} Nxd6 {[%emt 0:00:06]} 28. Rxd6 {[%emt 0:00:07][%cal Bd1d6,Bd6e6,Be6e7,Be7h7][%mdl 32]} Rfe8 {[%emt 0:01:42] Black is weak on the light squares} 29. Re1 {[%emt 0:01:53]} Qb2 {[%emt 0:01:34]} (29... Bf8 $142 30. Rd7 (30. Rxe6 Rxe6 31. Qxe6+ Qxe6 $18) 30... Re7) 30. Rxe6 {[%emt 0:01:34]} Rf8 {[%emt 0:01:01]} 31. Re2 {[%emt 0:00:31]} Qa1+ {[%emt 0:00:23]} 32. Kh2 {[%emt 0:00:28]} Bd4 $2 {[%emt 0:00:25]} (32... Qd4 33. Re7 b6) 33. Re7 {[%emt 0:01:24][%csl Ge7,LRb7,LRh7][%cal Re4h7]} Bg7 {[%emt 0:00:58]} 34. Qd5+ {[%emt 0:00:48]} Kh8 {[%emt 0:00:14]} 35. Qxg5 {[%emt 0:00:58]} Rbd8 {[%emt 0:00:42]} (35... Qf6 $142 36. Qxf6 Bxf6 37. Rxb7 a5 38. Rxb8 Rxb8) 36. Bd5 {[%emt 0:04:41]} (36. R2e5 $142 Qxe5 37. Rxe5) 36... Bf6 {[%emt 0:01:44] [#]} (36... Qf6 $18 37. Qxf6 Rxf6 38. Rxb7 Rh6) 37. Rxh7+ $3 {[%emt 0:00:35][%mdl 512] White mates.} Kxh7 {[%emt 0:00:25]} 38. Be4+ {[%emt 0:00:20]} Kh8 {[%emt 0:00:35]} 39. Qh6+ {[%emt 0:00:06] Weighted Error Value: White=0.35/Black=0.47.  Mistake:       	White=1     	Black=6      Inaccurate:     	White=1     	Black=2      OK:         	White=9     	Black=7      Best:        	White=1     	Black=1      Strong:       	White=2     	---} 1-0

[Event "WSTCC-50 2024"]
[Site "Krakow"]
[Date "2024.07.04"]
[Round "3.2"]
[White "Burrows, Martin P"]
[Black "Norinkeviciute, Rasa"]
[Result "1/2-1/2"]
[ECO "B90"]
[WhiteElo "2019"]
[BlackElo "1922"]
[Annotator "NA RC"]
[PlyCount "83"]
[EventDate "2024.07.01"]
[EventType "team-tourn"]
[EventCountry "POL"]
[SourceTitle "playchess.com"]
[Source "ChessBase"]
[SourceQuality "1"]
[TimeControl "40/5400+30:1800+30"]

1. e4 {[%emt 0:00:05]} c5 {[%emt 0:00:33]} 2. Nf3 {[%emt 0:00:08]} d6 {[%emt 0:00:06]} 3. d4 {[%emt 0:00:09]} cxd4 {[%emt 0:00:07]} 4. Nxd4 {[%emt 0:00:06]} Nf6 {[%emt 0:00:04]} 5. Nc3 {[%emt 0:00:10]} a6 {[%emt 0:00:06]} 6. Bc4 {[%emt 0:00:15]} e6 {[%emt 0:00:15]} 7. Bb3 {[%emt 0:00:21]} Be7 {[%emt 0:01:40]} 8. Be3 {[%emt 0:00:34]} Qc7 {[%emt 0:04:34]} 9. f3 {[%emt 0:00:32]} Nc6 {[%emt 0:01:32]} 10. Qd2 {[%emt 0:00:36]} Bd7 {[%emt 0:02:13]} 11. g4 {[%emt 0:03:52]} h6 {[%emt 0:05:25]} 12. O-O-O {[%emt 0:02:24]} Ne5 {[%emt 0:03:03]} 13. Kb1 {[%emt 0:18:30]} Nc4 {[%emt 0:08:44]} 14. Bxc4 {[%emt 0:02:46]} Qxc4 {[%emt 0:00:07]} 15. h4 {[%emt 0:00:43]} O-O-O {[%emt 0:11:48]} 16. Nb3 {[%emt 0:02:07]} Kb8 {[%emt 0:04:50]} 17. Bf2 {[%emt 0:06:41]} Qc7 {[%emt 0:17:31]} 18. Qd4 {[%emt 0:05:08]} b5 {[%emt 0:01:12]} 19. Ne2 {[%emt 0:09:14]} e5 {[%emt 0:05:29]} 20. Qe3 {[%emt 0:02:16]} Be6 {[%emt 0:01:39]} 21. g5 {[%emt 0:02:31]} Nd7 {[%emt 0:06:08]} 22. Nc3 {[%emt 0:04:52]} hxg5 {[%emt 0:07:13]} 23. hxg5 {[%emt 0:00:28]} Rxh1 {[%emt 0:00:05]} 24. Rxh1 {[%emt 0:00:06]} Nc5 {[%emt 0:00:18]} 25. Qd2 {[%emt 0:11:03]} Qc6 {[%emt 0:07:17]} 26. Nd5 {[%emt 0:06:43]} Bxd5 {[%emt 0:03:12]} 27. exd5 {[%emt 0:00:18]} Nxb3 {[%emt 0:01:49]} 28. axb3 {[%emt 0:00:15]} Qc7 {[%emt 0:00:59]} 29. c4 {[%emt 0:04:10]} Rc8 {[%emt 0:01:37]} 30. Rc1 {[%emt 0:03:56]} g6 {[%emt 0:02:04]} 31. Be3 {[%emt 0:00:51]} Qd7 {[%emt 0:01:51]} 32. Rc2 {[%emt 0:05:08]} f5 {[%emt 0:01:01]} 33. gxf6 {[%emt 0:03:05]} Bxf6 {[%emt 0:00:04]} 34. c5 {[%emt 0:01:10]} dxc5 {[%emt 0:00:13]} 35. Bxc5 {[%emt 0:00:27]} Qb7 {[%emt 0:02:32]} 36. Qd3 {[%emt 0:01:31]} Qf7 {[%emt 0:00:12]} 37. d6 {[%emt 0:02:26]} Bd8 {[%emt 0:00:41]} 38. d7 {[%emt 0:01:05]} Rc6 {[%emt 0:00:32]} 39. Bd6+ {[%emt 0:01:59]} Kb7 {[%emt 0:00:01]} 40. Rxc6 {[%emt 0:01:12]} Kxc6 {[%emt 0:00:04]} 41. Bxe5 {[%emt 0:06:00]} Qf5 {[%emt 0:03:42]} 42. Qxf5 {[%emt 0:00:56]} 1/2-1/2

[Event "WSTCC-50 2024"]
[Site "Krakow"]
[Date "2024.07.04"]
[Round "3.3"]
[White "Khachiyan, Melikset"]
[Black "Ginsburg, Mark"]
[Result "1/2-1/2"]
[ECO "E12"]
[WhiteElo "2435"]
[BlackElo "2272"]
[Annotator "TA"]
[PlyCount "56"]
[EventDate "2024.07.01"]
[EventType "team-tourn"]
[EventCountry "POL"]
[SourceTitle "playchess.com"]
[Source "ChessBase"]
[SourceQuality "1"]
[TimeControl "40/5400+30:1800+30"]

{[%evp 18,56,41,38,42,32,42,42,40,0,20,-29,-34,-22,-22,-50,-55,-58,-53,-58,-64,-68,-52,-58,-62,-66,-10,-12,0,0,0,0,0,0,0,0,0,-4,-4,0,0]} 1. Nf3 {[%emt 0:00:05]} Nf6 {[%emt 0:00:14]} 2. d4 {[%emt 0:00:20]} b6 {[%emt 0:06:30]} 3. c4 {[%emt 0:03:38]} e6 {[%emt 0:00:22]} 4. a3 {[%emt 0:00:39]} Bb7 {[%emt 0:00:23]} 5. Nc3 {[%emt 0:00:06]} d5 {[%emt 0:01:29]} 6. cxd5 {[%emt 0:00:07]} Nxd5 {[%emt 0:00:13]} 7. Qc2 {[%emt 0:00:45]} Be7 {[%emt 0:06:23]} 8. e4 {[%emt 0:00:10]} Nxc3 {[%emt 0:00:04]} 9. bxc3 {[%emt 0:00:05]} c5 {[%emt 0:04:56]} 10. Bb5+ {[%emt 0:05:45]} Bc6 {[%emt 0:02:09]} 11. Bd3 {[%emt 0:00:34]} Nd7 {[%emt 0:03:25]} 12. O-O {[%emt 0:00:19]} O-O {[%emt 0:05:35] White is slightly better.} 13. Bb2 {[%emt 0:07:27]} Qc7 {[%emt 0:06:01][%cal Oc5c4]} 14. Rad1 {[%emt 0:02:15] [#]} (14. Qe2 $142) 14... c4 $1 $11 {[%emt 0:05:16]} 15. Be2 {[%emt 0:04:26]} Qb7 {[%emt 0:00:28]} 16. Bxc4 {[%emt 0:18:15] Black must now prevent d5.} Bxe4 {[%emt 0:00:18]} 17. Qe2 {[%emt 0:00:04]} Bxf3 {[%emt 0:05:14]} 18. Qxf3 {[%emt 0:04:20]} Qxf3 {[%emt 0:00:21]} 19. gxf3 {[%emt 0:00:05]} Rac8 {[%emt 0:03:09]} 20. Bd3 {[%emt 0:05:06]} Nb8 {[%emt 0:03:22]} 21. Rfe1 {[%emt 0:08:24]} Nc6 {[%emt 0:09:46]} (21... Bf6 $15) 22. f4 {[%emt 0:05:46] The position is equal.} g6 {[%emt 0:00:37]} 23. f5 {[%emt 0:00:02]} gxf5 {[%emt 0:02:48]} 24. d5 {[%emt 0:00:04]} exd5 {[%emt 0:06:27]} 25. Bxf5 {[%emt 0:05:25]} Rc7 {[%emt 0:06:10]} 26. Rxd5 {[%emt 0:04:19]} Bf6 $1 {[%emt 0:00:18]} 27. Be4 {[%emt 0:03:50] [#] aiming for Rd6. This pair of bishops is nice.} Ne7 {[%emt 0:06:47]} 28. Rd6 {[%emt 0:03:47]} Bxc3 {Weighted Error Value: White=0.08 (flawless) /Black=0.07 (flawless) .  Mistake:       	White=1     	Black=1      Inaccurate:     	White=2     	---        OK:         	White=8     	Black=7      Best:        	---       	Black=1      Strong:       	---       	Black=1} 1/2-1/2